[Event "Czech Open Rapid G1 2024"]
[Site "Pardubice"]
[Date "2024.07.17"]
[Round "1.7"]
[White "Rous, Dominik"]
[Black "Jirka, Jiri"]
[Result "0-1"]
[Annotator "TA"]
[ECO "A06"]
[WhiteElo "1719"]
[BlackElo "2387"]
[PlyCount "96"]
[EventDate "2024.07.16"]
[EventType "swiss"]
[EventCountry "CZE"]
[SourceTitle "playchess.com"]
[Source "ChessBase"]
[SourceQuality "1"]
[TimeControl "1200+10"]

{[%evp 9,95,7,42,14,8,-2,0,-8,6,-24,-1,-28,9,15,17,-18,-9,-47,-11,-164,-88,-166,-148,-163,-160,-153,-165,-164,-162,-185,-197,-214,-218,-219,-209,-233,-231,-256,-216,-262,-156,-151,-144,-148,-140,-186,-179,-168,-181,-167,-167,-233,-177,-304,-277,-317,-311,-340,-242,-494,-445,-563,-556,-570,-554,-548,-500,-484,-482,-485,-467,-497,-500,-524,-520,-535,-527,-529,-525,-617,-609,-589,-589,-605,-597,-1702,-789,-700]} 1. Nf3 {[%emt 0:00:03]} d5 {[%emt 0:00:40]} 2. b3 {[%emt 0:01:08]} c5 {[%emt 0:00:26]} 3. e3 {[%emt 0:00:17]} Nc6 {[%emt 0:00:01]} 4. Bb2 {[%emt 0:00:04]} Nf6 {[%emt 0:00:03]} 5. Bb5 {[%emt 0:00:22]} g6 {[%emt 0:00:29]} 6. c4 {[%emt 0:00:10]} dxc4 {[%emt 0:04:11]} 7. Bxc4 {[%emt 0:00:24]} Bg7 {[%emt 0:00:14]} 8. O-O {[%emt 0:00:07] The position is equal.} O-O {[%emt 0:00:04]} 9. Nc3 {[%emt 0:04:34]} Bg4 {[%emt 0:04:09]} 10. Be2 {[%emt 0:01:21]} Qa5 {[%emt 0:05:55]} 11. h3 {[%emt 0:01:02]} Bf5 {[%emt 0:00:50]} 12. d3 {[%emt 0:04:17]} Rfd8 {[%emt 0:00:17]} (12... Nd5 $5 13. Na4 Bxb2 14. Nxb2 Nc3 $15) 13. g4 {[%emt 0:01:50]} Be6 {[%emt 0:00:22][%cal Of6g4] Threatening ...Nxg4!} 14. a3 $2 {[%emt 0:00:48] [#]} (14. Qc1 $11) 14... Nd5 {[%emt 0:02:02]} (14... Nxg4 $1 $19 15. hxg4 Bxc3 16. Bxc3 Qxc3) 15. Na4 {[%emt 0:00:08]} (15. b4 $17 cxb4 16. axb4 Qxb4 17. Nxd5 Bxd5 (17... Rxd5 18. Bxg7 Kxg7 19. Rb1 $11) (17... Qxb2 18. Rb1 $15) 18. Bxg7 Kxg7 19. Rb1) 15... Bxb2 $19 {[%emt 0:00:13]} 16. Nxb2 {[%emt 0:00:03]} Nc3 {[%emt 0:00:10] Repels Na4} 17. Qc2 {[%emt 0:00:01]} Nxe2+ {[%emt 0:00:04]} 18. Qxe2 {[%emt 0:00:01]} Bxb3 {[%emt 0:00:03]} 19. Rfb1 {[%emt 0:00:25]} Rd7 {[%emt 0:00:33]} 20. Nc4 {[%emt 0:00:20]} Bxc4 {[%emt 0:00:02]} 21. dxc4 {[%emt 0:00:01]} Rad8 {[%emt 0:00:09]} 22. Kg2 {[%emt 0:00:34]} b6 {[%emt 0:00:35]} 23. h4 {[%emt 0:00:57]} Qc3 {[%emt 0:00:08]} 24. Rh1 {[%emt 0:00:40]} Ne5 {[%emt 0:00:54]} (24... Qf6 $19 25. Rag1 Rd3) 25. Rhc1 $17 {[%emt 0:01:03]} Qd3 {[%emt 0:00:07] Black has more active pieces.} 26. Qxd3 {[%emt 0:00:20]} Nxd3 {[%emt 0:00:00]} 27. Rh1 {[%emt 0:00:36]} (27. Rcb1 $17 {might work better.}) 27... f6 $19 {[%emt 0:00:13]} 28. g5 {[%emt 0:00:12]} h5 {[%emt 0:01:01]} 29. gxf6 {[%emt 0:01:04]} exf6 {[%emt 0:00:01]} 30. Rhg1 {[%emt 0:00:46]} (30. Ra2 $142) 30... Kf7 {[%emt 0:00:02]} 31. Kg3 {[%emt 0:00:29]} (31. Ra2 $142) 31... Nb2 {[%emt 0:00:05][%cal Od8e8]} 32. Rgc1 {[%emt 0:00:16]} Rd1 {[%emt 0:00:16]} 33. Rxd1 {[%emt 0:00:16]} Nxd1 {[%emt 0:00:01][%mdl 4096] Endgame. KRN-KRN} 34. Nd4 $2 {[%emt 0:00:45] [#]} (34. Rc1) 34... Nxe3 {[%emt 0:00:05] Black is clearly winning.} 35. Nc6 {[%emt 0:00:01]} Nf5+ {[%emt 0:00:01]} 36. Kh2 {[%emt 0:00:04]} Rd7 {[%emt 0:00:03]} 37. a4 {[%emt 0:00:10]} Nd4 {[%emt 0:00:07]} 38. Nb8 {[%emt 0:00:11]} Rb7 {[%emt 0:00:21]} 39. Na6 {[%emt 0:00:01]} Re7 {[%emt 0:00:12]} 40. a5 {[%emt 0:00:01]} Nb3 {[%emt 0:00:01][%csl LRa1,LRa5]} 41. Ra4 {[%emt 0:00:26]} Nxa5 {[%emt 0:00:05] White must now prevent ...Re4.} 42. Nxc5 {[%emt 0:00:01]} Nc6 {[%emt 0:00:09]} 43. Nb3 {[%emt 0:00:22]} Re4 {[%emt 0:00:06]} 44. Nd2 {[%emt 0:00:06]} Rxh4+ {[%emt 0:00:03]} 45. Kg3 {[%emt 0:00:02]} Rg4+ {[%emt 0:00:01]} 46. Kf3 {[%emt 0:00:01]} a5 {[%emt 0:00:06] ...Ne5+ would now be deadly.} 47. Ra1 {[%emt 0:00:06]} Ne5+ {[%emt 0:00:02]} 48. Ke2 {[%emt 0:00:02]} Nxc4 {[%emt 0:00:03] Weighted Error Value: White=0.40/Black=0.17 (very precise) .  Mistake:       	White=6     	Black=2      Inaccurate:     	White=5     	Black=2      OK:         	White=10    	Black=22     Best:        	---       	Black=1} 0-1

[Event "Czech Open Rapid G1 2024"]
[Site "Pardubice"]
[Date "2024.07.17"]
[Round "1.8"]
[White "Johansson, Linus"]
[Black "Setina, Vaclav"]
[Result "1-0"]
[Annotator "RC"]
[ECO "D55"]
[WhiteElo "2451"]
[BlackElo "1984"]
[PlyCount "93"]
[EventDate "2024.07.16"]
[EventType "swiss"]
[EventCountry "CZE"]
[SourceTitle "playchess.com"]
[Source "ChessBase"]
[SourceQuality "1"]
[TimeControl "1200+10"]

1. d4 {[%emt 0:00:03]} d5 {[%emt 0:00:01]} 2. c4 {[%emt 0:00:01]} e6 {[%emt 0:00:01]} 3. Nc3 {[%emt 0:00:01]} Nf6 {[%emt 0:00:02]} 4. Bg5 {[%emt 0:00:02]} Be7 {[%emt 0:00:07]} 5. e3 {[%emt 0:00:02]} O-O {[%emt 0:00:15]} 6. Rc1 {[%emt 0:00:02]} b6 {[%emt 0:00:21]} 7. Nf3 {[%emt 0:01:01]} Bb7 {[%emt 0:00:15]} 8. Bxf6 {[%emt 0:00:10]} Bxf6 {[%emt 0:00:04]} 9. cxd5 {[%emt 0:00:01]} exd5 {[%emt 0:00:05]} 10. b4 {[%emt 0:00:02]} Nd7 {[%emt 0:00:54]} 11. Bd3 {[%emt 0:00:02]} c5 {[%emt 0:01:27]} 12. bxc5 {[%emt 0:00:01]} bxc5 {[%emt 0:00:01]} 13. Rb1 {[%emt 0:00:38]} Bc6 {[%emt 0:01:04]} 14. O-O {[%emt 0:00:05]} c4 {[%emt 0:00:10]} 15. Bf5 {[%emt 0:00:24]} Qa5 {[%emt 0:00:26]} 16. Qc2 {[%emt 0:00:02]} g6 {[%emt 0:00:02]} 17. Bh3 {[%emt 0:00:43]} Rab8 {[%emt 0:00:05]} 18. g3 {[%emt 0:00:08]} Rb6 {[%emt 0:00:34]} 19. Nd2 {[%emt 0:01:07]} Be7 {[%emt 0:02:57]} 20. e4 {[%emt 0:00:40]} Bb4 {[%emt 0:01:27]} 21. exd5 {[%emt 0:00:17]} Bxc3 {[%emt 0:02:34]} 22. dxc6 {[%emt 0:01:03]} Bxd2 {[%emt 0:00:33]} 23. Bxd7 {[%emt 0:04:31]} c3 {[%emt 0:00:12]} 24. Rxb6 {[%emt 0:00:02]} Qxb6 {[%emt 0:01:13]} 25. Qd3 {[%emt 0:00:02]} Qc7 {[%emt 0:01:10]} 26. Rd1 {[%emt 0:00:43]} Qd6 {[%emt 0:00:21]} 27. Rxd2 {[%emt 0:01:40]} cxd2 {[%emt 0:00:04]} 28. Qxd2 {[%emt 0:00:01]} Rb8 {[%emt 0:01:02]} 29. Qf4 {[%emt 0:00:02]} Rb1+ {[%emt 0:00:09]} 30. Kg2 {[%emt 0:00:02]} Qd5+ {[%emt 0:00:27]} 31. Qf3 {[%emt 0:04:11]} Qc4 {[%emt 0:00:22]} 32. h4 {[%emt 0:00:18]} Rc1 {[%emt 0:02:12]} 33. d5 {[%emt 0:00:01]} Qf1+ {[%emt 0:01:02]} 34. Kh2 {[%emt 0:00:01]} Rc2 {[%emt 0:00:13]} 35. Bh3 {[%emt 0:00:42]} Rxf2+ {[%emt 0:01:16]} 36. Bg2 {[%emt 0:00:01]} Qe1 {[%emt 0:00:19]} 37. c7 {[%emt 0:02:54]} Rc2 {[%emt 0:00:52]} 38. d6 {[%emt 0:00:01]} Qd2 {[%emt 0:00:23]} 39. Qa8+ {[%emt 0:00:25]} Kg7 {[%emt 0:00:01]} 40. c8=Q {[%emt 0:00:03]} Rxc8 {[%emt 0:00:06]} 41. Qxc8 {[%emt 0:00:02]} Qxd6 {[%emt 0:00:04]} 42. Qc3+ {[%emt 0:00:19]} Kg8 {[%emt 0:00:17]} 43. a4 {[%emt 0:00:26]} h5 {[%emt 0:00:24]} 44. a5 {[%emt 0:00:03]} Qe6 {[%emt 0:01:00]} 45. Qd4 {[%emt 0:00:25]} Qa6 {[%emt 0:00:08]} 46. Qe5 {[%emt 0:00:07]} Qd3 {[%emt 0:00:21]} 47. Qb8+ {[%emt 0:00:08]} 1-0

[Event "Czech Open Rapid G1 2024"]
[Site "Pardubice"]
[Date "2024.07.17"]
[Round "1.9"]
[White "Duda, Antonin"]
[Black "Lalic, Bogdan"]
[Result "0-1"]
[Annotator "RC"]
[ECO "B12"]
[WhiteElo "2117"]
[BlackElo "2348"]
[PlyCount "68"]
[EventDate "2024.07.16"]
[EventType "swiss"]
[EventCountry "CZE"]
[SourceTitle "playchess.com"]
[Source "ChessBase"]
[SourceQuality "1"]
[TimeControl "1200+10"]

1. e4 {[%emt 0:00:03]} c6 {[%emt 0:00:04]} 2. d4 {[%emt 0:00:06]} d5 {[%emt 0:00:01]} 3. f3 {[%emt 0:00:01]} Qb6 {[%emt 0:00:27]} 4. Nc3 {[%emt 0:00:20]} dxe4 {[%emt 0:00:12]} 5. Bc4 {[%emt 0:00:26]} exf3 {[%emt 0:00:42]} 6. Nxf3 {[%emt 0:00:24]} e6 {[%emt 0:00:01]} 7. O-O {[%emt 0:00:56]} Nf6 {[%emt 0:00:05]} 8. Kh1 {[%emt 0:00:37]} Be7 {[%emt 0:00:11]} 9. Qe1 {[%emt 0:00:28]} O-O {[%emt 0:00:13]} 10. Qg3 {[%emt 0:01:18]} Nbd7 {[%emt 0:00:46]} 11. a3 {[%emt 0:01:32]} Re8 {[%emt 0:01:36]} 12. Bd3 {[%emt 0:04:16]} Nf8 {[%emt 0:00:45]} 13. Bh6 {[%emt 0:00:51]} Ng6 {[%emt 0:00:28]} 14. Bg5 {[%emt 0:00:58]} Bd7 {[%emt 0:01:27]} 15. Ne4 {[%emt 0:02:40]} Nxe4 {[%emt 0:00:39]} 16. Bxe4 {[%emt 0:00:03]} f5 {[%emt 0:01:40]} 17. Bd3 {[%emt 0:00:34]} c5 {[%emt 0:00:08]} 18. Be3 {[%emt 0:02:18]} Rac8 {[%emt 0:00:31]} 19. h4 {[%emt 0:00:14]} Qc7 {[%emt 0:00:31]} 20. Qxc7 {[%emt 0:01:15]} Rxc7 {[%emt 0:00:01]} 21. h5 {[%emt 0:00:06]} Nf8 {[%emt 0:01:35]} 22. Bf4 {[%emt 0:00:46]} Rcc8 {[%emt 0:00:14]} 23. Rae1 {[%emt 0:01:11]} c4 {[%emt 0:01:09]} 24. Be2 {[%emt 0:00:16]} Bc6 {[%emt 0:02:50]} 25. Ne5 {[%emt 0:00:14]} Bd5 {[%emt 0:00:01]} 26. a4 {[%emt 0:01:01]} Red8 {[%emt 0:00:31]} 27. Bf3 {[%emt 0:00:14]} Bf6 {[%emt 0:00:25]} 28. b3 {[%emt 0:00:45]} cxb3 {[%emt 0:00:11]} 29. c4 {[%emt 0:00:01]} Bxf3 {[%emt 0:00:05]} 30. Rxf3 {[%emt 0:00:09]} Rxd4 {[%emt 0:00:02]} 31. Bg3 {[%emt 0:00:26]} b2 {[%emt 0:01:28]} 32. Rb3 {[%emt 0:00:01]} f4 {[%emt 0:00:14]} 33. Bf2 {[%emt 0:00:14]} Rd2 {[%emt 0:00:01]} 34. Nd3 {[%emt 0:00:18]} Rd8 {[%emt 0:00:07]} 0-1

[Event "Czech Open Rapid G1 2024"]
[Site "Pardubice"]
[Date "2024.07.17"]
[Round "1.10"]
[White "Rasik, Vitezslav"]
[Black "Karvatskyi, Oleksii"]
[Result "1-0"]
[Annotator "TA"]
[ECO "B30"]
[WhiteElo "2415"]
[BlackElo "1990"]
[PlyCount "85"]
[EventDate "2024.07.16"]
[EventType "swiss"]
[EventCountry "CZE"]
[SourceTitle "playchess.com"]
[Source "ChessBase"]
[SourceQuality "1"]
[TimeControl "1200+10"]

{[%evp 17,85,24,44,31,31,26,43,38,37,37,42,43,43,35,62,45,54,68,64,58,70,66,84,36,116,125,109,120,137,137,141,154,147,127,159,161,175,177,166,152,152,152,448,448,711,692,660,599,885,867,11313,11460,8941,6443,6652,6395,1726,993,29975,29976,7913,1776,29979,29980,29966,29964,29972,5846,29988,29989]} 1. e4 {[%emt 0:00:03]} c5 {[%emt 0:00:00]} 2. Nf3 {[%emt 0:00:02]} Nc6 {[%emt 0:00:02]} 3. Bb5 {[%emt 0:00:01]} e6 {[%emt 0:00:00]} 4. O-O {[%emt 0:00:04]} Nge7 {[%emt 0:00:02]} 5. b3 {[%emt 0:00:03]} a6 {[%emt 0:00:07]} 6. Bxc6 {[%emt 0:00:04]} Nxc6 {[%emt 0:00:02]} 7. Bb2 {[%emt 0:00:02]} d6 {[%emt 0:01:10]} 8. d4 {[%emt 0:00:47]} cxd4 {[%emt 0:00:35]} 9. Nxd4 {[%emt 0:00:05]} e5 {[%emt 0:00:06]} 10. Nxc6 {[%emt 0:01:04]} bxc6 {[%emt 0:00:01]} 11. c4 {[%emt 0:00:23]} Be7 {[%emt 0:00:14]} 12. Nc3 {[%emt 0:00:24] White is slightly better.} Be6 {[%emt 0:00:14]} 13. Qe2 {[%emt 0:01:26]} O-O {[%emt 0:00:36]} 14. Rfd1 {[%emt 0:00:18]} Qc7 {[%emt 0:01:51]} 15. Rac1 {[%emt 0:02:25][%cal Oc3d5]} Rad8 {[%emt 0:00:14]} 16. Rc2 {[%emt 0:01:21]} f5 {[%emt 0:00:17] [#]} 17. Nd5 $1 {[%emt 0:02:04]} cxd5 {[%emt 0:01:23]} 18. cxd5 {[%emt 0:00:07]} Qb7 {[%emt 0:00:07]} 19. dxe6 {[%emt 0:00:22]} fxe4 {[%emt 0:00:05]} 20. Rdc1 {[%emt 0:01:53] White is more active.} (20. Ba3 $16) 20... Rc8 {[%emt 0:00:13] [#]} (20... Qd5 $14) 21. Rxc8 $1 $16 {[%emt 0:00:49]} Rxc8 {[%emt 0:00:01]} 22. Rxc8+ {[%emt 0:00:06]} Qxc8 {[%emt 0:00:01]} 23. Qxe4 {[%emt 0:00:03]} Qxe6 {[%emt 0:00:52][%mdl 4096] Endgame. KQB-KQB} 24. Qa8+ {[%emt 0:00:30]} Kf7 {[%emt 0:00:03]} 25. Qxa6 {[%emt 0:00:01]} d5 {[%emt 0:01:22][%cal Bd6d5,Bd5d4][%mdl 32]} 26. Qxe6+ {[%emt 0:01:31]} Kxe6 {[%emt 0:00:02] KB-KB} 27. Kf1 {[%emt 0:01:17]} d4 {[%emt 0:00:13]} 28. Ke2 {[%emt 0:01:46] aiming for f3.} Kd5 {[%emt 0:00:08]} 29. f3 {[%emt 0:00:31] Hoping for Kd3.} h5 $2 {[%emt 0:00:07] Loses the game.} (29... e4 $16) 30. Kd3 $18 {[%emt 0:00:38]} g5 {[%emt 0:00:10]} (30... Bb4 $142 31. Bc1 Be7) 31. Bc1 {[%emt 0:01:25]} g4 {[%emt 0:00:14][%cal Bg5g4,Bg4g3][%mdl 32]} 32. a4 {[%emt 0:00:30][%cal Ba2a4,Ba4a5][%mdl 32]} h4 {[%emt 0:02:36] [#] Threatens to win with ...h3.} 33. h3 $1 {[%emt 0:00:07]} (33. fxg4 e4+ 34. Kc2 d3+ 35. Kd1 Bc5 $11) (33. Bd2 h3 34. Kc2 hxg2 35. a5 gxf3 (35... g1=R $2 36. fxg4 e4 37. a6 $19) (35... g1=Q 36. a6 gxf3 37. Kb2 Qxh2 38. a7 Qxd2+ 39. Kb1 Qa5 40. Kb2 f2 41. b4 Qxa7 42. b5 Qa3+ 43. Kb1 f1=Q+ 44. Kc2 Qfd3#) 36. Kb2 g1=Q (36... g1=B $2 37. Be1 $19) 37. a6 Qxh2 38. a7 Qxd2+ 39. Kb1 Qa5 40. Kb2 f2 (40... Qxa7 41. Kb1 f2 42. Kb2 Qa3+ 43. Kb1 f1=Q+ 44. Kc2 Qac1#) 41. a8=B+ Qxa8 42. Kb1 f1=Q+ (42... f1=R+ $2 43. Kb2 Qa1+ 44. Kc2 Qc3#) 43. Kb2 Qaa1+ 44. Kc2 Qe2#) 33... g3 {[%emt 0:00:18]} 34. Bd2 {[%emt 0:00:06]} Bf6 {[%emt 0:00:40]} 35. b4 {[%emt 0:00:06][%cal Bb3b4,Bb4b5,Bb5b6,Bb6b7][%mdl 32]} Be7 {[%emt 0:00:06]} 36. a5 {[%emt 0:00:21]} Bd8 {[%emt 0:00:11]} 37. b5 {[%emt 0:00:20] Threatening mate with a6.} Bc7 {[%emt 0:00:16]} 38. b6 {[%emt 0:00:23]} Bd6 {[%emt 0:00:06]} 39. Bg5 {[%emt 0:00:36]} (39. a6 $142 Kc6 40. Ba5) 39... Kc5 {[%emt 0:00:26]} 40. Bxh4 {[%emt 0:00:26]} Kb5 {[%emt 0:00:02]} 41. Bd8 {[%emt 0:00:11]} (41. Bxg3 Kxa5 42. b7 Kb6 $18) 41... Bb4 {[%emt 0:00:23]} 42. h4 {[%emt 0:00:24]} (42. b7 $142 Bd6 43. Ke4 Ka6 44. Bh4 Kxb7 45. Bxg3 d3 46. Be1 (46. Bxe5 $2 {is the wrong capture.} d2 $19) (46. Kxd3 e4+ 47. Kxe4 Bxg3 $18) 46... Kc8 47. h4 (47. Kxd3 Kd8 $18)) 42... Bxa5 {[%emt 0:00:07]} 43. b7 {[%emt 0:00:05] Weighted Error Value: White=0.08 (flawless) /Black=0.99.  Loses game:     	---       	Black=1      Mistake:       	White=1     	Black=2      Inaccurate:     	---       	Black=2      OK:         	White=10    	Black=5      Best:        	White=3     	Black=1      Strong:       	White=1     	---        Brilliant:      	White=1     	---} 1-0

[Event "Czech Open Rapid G1 2024"]
[Site "Pardubice"]
[Date "2024.07.17"]
[Round "1.11"]
[White "Levytskyi, Liubomyr"]
[Black "Piesik, Piotr"]
[Result "1/2-1/2"]
[Annotator "TA"]
[ECO "B08"]
[WhiteElo "1717"]
[BlackElo "2415"]
[PlyCount "119"]
[EventDate "2024.07.16"]
[EventType "swiss"]
[EventCountry "CZE"]
[SourceTitle "playchess.com"]
[Source "ChessBase"]
[SourceQuality "1"]
[TimeControl "1200+10"]

{[%evp 25,119,-18,-4,-39,-16,-160,-159,-150,-170,-166,-143,-179,-64,-87,-35,-31,39,16,12,17,6,0,61,56,69,59,67,0,0,-29,58,6,11,7,12,14,24,10,22,19,19,0,30,-59,92,97,124,124,183,191,180,92,101,100,109,82,264,190,449,442,609,629,588,383,417,397,389,70,70,70,70,65,433,308,413,413,597,603,591,334,562,636,603,0,669,669,669,226,233,227,872,0,0,0,0,0]} 1. e4 {[%emt 0:00:02]} g6 {[%emt 0:00:02]} 2. d4 {[%emt 0:00:03]} Bg7 {[%emt 0:00:02]} 3. Nc3 {[%emt 0:00:02]} c6 {[%emt 0:00:01]} 4. h3 {[%emt 0:00:14]} d6 {[%emt 0:00:05]} 5. Nf3 {[%emt 0:00:15]} Nd7 {[%emt 0:00:08]} 6. a4 {[%emt 0:00:06]} Ngf6 {[%emt 0:00:03]} 7. Bd3 {[%emt 0:00:20]} O-O {[%emt 0:00:06]} 8. O-O {[%emt 0:00:02]} e5 {[%emt 0:00:02]} 9. dxe5 {[%emt 0:00:55]} dxe5 {[%emt 0:00:02]} 10. Be3 {[%emt 0:00:55]} Qe7 {[%emt 0:00:02]} 11. Nd2 {[%emt 0:01:10]} Nc5 {[%emt 0:00:06]} 12. Bc4 {[%emt 0:00:03]} Rd8 {[%emt 0:00:32] B08: Pirc Defence: Classical System.} 13. Qe2 {[%emt 0:00:16]} Nh5 {[%emt 0:00:52]} 14. Nb3 $146 {[%emt 0:03:46]} ({Predecessor:} 14. Rad1 Nf4 15. Qf3 Nce6 16. Rfe1 b6 17. Bf1 Nd4 18. Bxd4 Rxd4 19. Nc4 Rxd1 20. Rxd1 {0-1 Garakov,M (2447)-Galaktionov,A (2338) Titled Tuesday intern op 21st May Early blitz 2024 (11)}) 14... Ne6 {[%emt 0:00:20]} 15. Rad1 {[%emt 0:00:59]} (15. Qf3 $11 {keeps the balance.}) 15... Nd4 $17 {[%emt 0:00:27]} 16. Bxd4 {[%emt 0:02:38]} exd4 {[%emt 0:00:04]} 17. Nb1 {[%emt 0:00:01]} Nf4 {[%emt 0:00:38]} 18. Qf3 {[%emt 0:00:27]} Be6 {[%emt 0:03:00]} (18... Be5 $19 {...Qg5 would now be deadly.} 19. N1d2 Qg5) 19. N1d2 $15 {[%emt 0:01:32]} Qg5 {[%emt 0:01:46]} (19... Qb4 $17 20. Nxd4 Bxc4) 20. Bxe6 $15 {[%emt 0:00:25]} fxe6 {[%emt 0:00:02]} ({Black should try} 20... Nxe6 $15 21. g3 b5) 21. Qg4 {[%emt 0:02:23]} (21. h4 $5 Qf6 (21... Qxh4 $2 22. g3 $18) 22. g3 $11) 21... Qxg4 {[%emt 0:02:17]} 22. hxg4 {[%emt 0:00:02]} e5 {[%emt 0:00:02]} 23. Nc5 {[%emt 0:00:54]} b5 {[%emt 0:00:50]} (23... d3 $11 24. Nxd3 (24. Nxb7 $2 dxc2 25. g3 Ne6 $19) 24... Nxd3 25. cxd3 Rxd3) 24. g3 $14 {[%emt 0:01:17]} Nh3+ {[%emt 0:00:08]} 25. Kg2 {[%emt 0:00:03]} Ng5 {[%emt 0:00:00]} 26. axb5 {[%emt 0:00:49]} (26. f4 $14 Nf7 27. g5) 26... cxb5 $11 {[%emt 0:00:06]} 27. b4 {[%emt 0:00:09]} a5 {[%emt 0:00:49]} (27... Rdc8 $11) 28. f4 {[%emt 0:01:39]} (28. bxa5 $14 Rac8 29. Nb7) 28... Nf7 $11 {[%emt 0:00:12]} 29. bxa5 {[%emt 0:00:05]} Rdc8 {[%emt 0:00:04]} (29... Rxa5 $2 30. Nb7 Ra2 31. Nxd8 Nxd8 32. fxe5 Rxc2 33. Rf2 $18) 30. Ndb3 {[%emt 0:00:24]} Bf8 {[%emt 0:00:05]} 31. Ne6 {[%emt 0:00:45]} Rxc2+ {[%emt 0:00:14]} 32. Rf2 {[%emt 0:00:01]} Rc3 {[%emt 0:00:58]} 33. Rf3 {[%emt 0:01:45]} (33. Nxf8 $5 Rxf8 (33... Kxf8 34. fxe5 Ke7 35. Nxd4 $11) 34. Rb1 $11) 33... Bd6 {[%emt 0:02:51]} 34. f5 {[%emt 0:00:57]} (34. Rxc3 $11 dxc3 35. Kf3) 34... Rxf3 $2 {[%emt 0:00:40]} (34... b4 $1 $15 {keeps the upper hand.}) 35. Kxf3 $16 {[%emt 0:00:01]} Bb4 {[%emt 0:00:01]} 36. Ra1 {[%emt 0:00:20]} Bc3 {[%emt 0:00:17]} (36... Ra6 $16 37. Ra2 Nd6) 37. Ra2 $18 {[%emt 0:00:04]} Nd6 {[%emt 0:00:48]} 38. Nc7 {[%emt 0:00:26]} (38. a6 $18) 38... Ra7 $16 {[%emt 0:00:10]} 39. Nd5 {[%emt 0:00:01]} Nc4 {[%emt 0:01:02]} 40. a6 {[%emt 0:00:10]} b4 $2 {[%emt 0:00:02]} (40... Bb2 $16 {is a better defense.}) 41. Ke2 {[%emt 0:00:19]} Na3 $2 {[%emt 0:00:09]} (41... Kf7 42. Nc5 Ne3) 42. Nc5 $18 {[%emt 0:00:10]} Kf7 {[%emt 0:00:13]} 43. Kd3 {[%emt 0:00:11]} h5 {[%emt 0:00:24]} 44. fxg6+ Kxg6 {[%emt 0:00:01]} 45. gxh5+ Kxh5 {[%emt 0:00:01]} 46. Nb6 $2 {[%emt 0:00:24]} (46. Nf6+ $18 Kg5 47. Nfd7) 46... Kg4 {[%emt 0:00:11]} 47. Nbd7 {[%emt 0:00:15]} Kxg3 {[%emt 0:00:57]} 48. Nxe5 {[%emt 0:00:01]} Nb5 $2 {[%emt 0:00:05][%mdl 8192]} (48... Rc7 $14 49. Nb7 Nb5) 49. Kc4 {[%emt 0:00:16]} Nc7 {[%emt 0:00:51]} 50. Nc6 {[%emt 0:00:09]} Ra8 {[%emt 0:00:01]} (50... d3 $142 51. Nxa7 (51. Kxd3 Ra8 $18) 51... d2 52. Rxd2 Bxd2) 51. a7 $18 {[%emt 0:00:11]} (51. Nxb4 Bxb4 52. Kxb4 Nxa6+ 53. Nxa6 (53. Rxa6 Rxa6 54. Nxa6 Kf4 $11) 53... Kf4 $16) (51. Nxd4 Bxd4 52. Kxd4 b3 53. Nxb3 Rxa6 54. Rxa6 Nxa6 $11) 51... Kf4 {[%emt 0:00:13]} 52. Nd7 {[%emt 0:00:11]} (52. Nxb4 Bxb4 53. Kxb4 d3 $16) 52... Kxe4 $2 {[%emt 0:00:09]} (52... Rh8 53. Nc5 (53. Nxd4 Bxd4 54. Kxd4 Nb5+ 55. Kc5 Nxa7 $14) (53. Nxb4 Bxb4 54. Kxb4 Kxe4 $14) 53... Ke3) 53. Nb6 $18 {[%emt 0:00:10]} (53. Nxb4 Bxb4 54. Nb6 (54. Kxb4 d3 $11) 54... Rd8 $11 (54... Rxa7 55. Rxa7 Bd6 56. Ra1 $14)) 53... Rg8 {[%emt 0:00:10]} 54. Nd7 $2 {[%emt 0:00:16]} (54. a8=R Nxa8 55. Nxa8 d3 $11) (54. Nxb4 Bxb4 55. Kxb4 d3 $14) (54. Re2+ $18 Kf3 55. Re7 (55. Nxd4+ $2 Bxd4 56. Kxd4 Kxe2 $19)) 54... Rg6 $2 {[%emt 0:00:27][%mdl 8192]} (54... Ra8 $11) 55. Nc5+ $18 {[%emt 0:00:09]} (55. a8=R $2 {too greedy.} Rxc6+ 56. Kb3 Nxa8 57. Rxa8 d3 $19) (55. a8=Q Nxa8 56. Re2+ (56. Nc5+ Kf4 $11) 56... Kf3 $11) (55. Nxb4 Bxb4 56. Kxb4 (56. a8=Q+ Nxa8 57. Rxa8 Be7 $11) 56... d3 $14) 55... Ke3 {[%emt 0:00:02]} 56. Nxb4 $2 {[%emt 0:00:08]} ({Inferior is} 56. a8=R Rxc6 57. Rh8 Ne6 58. Rh3+ Kf4 $11) (56. a8=B Nxa8 57. Nxb4 Nb6+ 58. Kb5 Bxb4 59. Kxb4 Rg1 $11) (56. Ne7) 56... Bxb4 $18 {[%emt 0:00:23]} 57. Kxb4 {[%emt 0:00:02]} d3 $2 {[%emt 0:00:12] [#]} (57... Rg8 58. Ra3+ Ke2) 58. Nxd3 $2 {[%emt 0:00:21]} ({Stronger than} 58. a8=R Nxa8 59. Rxa8 d2 60. Re8+ Kf2 61. Ne4+ Ke3 $11) (58. Ra3 $1 $18 {[%cal Ra3d3][%mdl 512]} Rb6+ (58... Rd6 59. Rxd3+) 59. Kc4) 58... Kxd3 $11 {[%emt 0:00:06]} 59. a8=Q {[%emt 0:00:03]} Nxa8 {[%emt 0:00:01]} 60. Rxa8 {[%emt 0:00:02]} 1/2-1/2